[Event "*** SCC Grand Prix: Titled Tuesday Blitz"]
[Site "Chess.com"]
[Date "2020.08.04"]
[Round "7"]
[White "Koalaskakistis"]
[Black "diablanni"]
[Result "1-0"]
[WhiteElo "2511"]
[BlackElo "2325"]
[TimeControl "180+1"]
[EndTime "15:03:17 PDT"]
[Termination "Koalaskakistis won on time"]

1. d4 {[%clk 0:03:00.9]} 1... Nf6 {[%clk 0:02:59.4]} 2. c4 {[%clk 0:03:00]} 2...
c5 {[%clk 0:02:58.6]} 3. d5 {[%clk 0:02:59.6]} 3... b5 {[%clk 0:02:58.2]} 4.
cxb5 {[%clk 0:02:59.2]} 4... a6 {[%clk 0:02:58]} 5. b6 {[%clk 0:02:59.7]} 5...
e6 {[%clk 0:02:56.1]} 6. Nc3 {[%clk 0:02:57.7]} 6... Nxd5 {[%clk 0:02:55.5]} 7.
Nxd5 {[%clk 0:02:58.6]} 7... exd5 {[%clk 0:02:54.6]} 8. Qxd5 {[%clk 0:02:58.9]}
8... Nc6 {[%clk 0:02:52.7]} 9. g3 {[%clk 0:02:51.2]} 9... Be7 {[%clk 0:02:15.8]}
10. Bg2 {[%clk 0:02:50.3]} 10... O-O {[%clk 0:02:09.8]} 11. Nf3 {[%clk 0:02:49]}
11... Rb8 {[%clk 0:02:08.9]} 12. O-O {[%clk 0:02:39.9]} 12... Qxb6 {[%clk
0:01:56.5]} 13. Bf4 {[%clk 0:02:38.4]} 13... d6 {[%clk 0:01:53.1]} 14. b3 {[%clk
0:02:32.2]} 14... Be6 {[%clk 0:01:50.3]} 15. Qd2 {[%clk 0:02:31]} 15... Rbd8
{[%clk 0:01:46.1]} 16. Rac1 {[%clk 0:02:28]} 16... a5 {[%clk 0:01:23.4]} 17. Ng5
{[%clk 0:02:25.8]} 17... Bf5 {[%clk 0:01:16.8]} 18. Rfd1 {[%clk 0:02:02.7]}
18... Nd4 {[%clk 0:01:01]} 19. Bd5 {[%clk 0:01:49.8]} 19... h6 {[%clk
0:00:45.5]} 20. Nf3 {[%clk 0:01:39.7]} 20... Bf6 {[%clk 0:00:42.4]} 21. Nxd4
{[%clk 0:01:37.1]} 21... Bxd4 {[%clk 0:00:42]} 22. e3 {[%clk 0:01:32.9]} 22...
Bf6 {[%clk 0:00:41.1]} 23. e4 {[%clk 0:01:31]} 23... Bg4 {[%clk 0:00:40.6]} 24.
Re1 {[%clk 0:01:30]} 24... Rfe8 {[%clk 0:00:39.9]} 25. Kg2 {[%clk 0:01:27.3]}
25... Be6 {[%clk 0:00:12.5]} 26. Rcd1 {[%clk 0:01:19.6]} 26... Bd4 {[%clk
0:00:12.2]} 27. Bxe6 {[%clk 0:01:10.2]} 27... fxe6 {[%clk 0:00:12.3]} 28. Be3
{[%clk 0:01:00.9]} 28... e5 {[%clk 0:00:12.3]} 29. Bxd4 {[%clk 0:00:49.6]} 29...
cxd4 {[%clk 0:00:13.2]} 30. Rc1 {[%clk 0:00:48.2]} 30... Rc8 {[%clk 0:00:13.3]}
31. Qd3 {[%clk 0:00:47.7]} 31... Qb4 {[%clk 0:00:10.7]} 32. Qa6 {[%clk
0:00:43.1]} 32... Rc3 {[%clk 0:00:08.6]} 33. Rxc3 {[%clk 0:00:35.2]} 33... dxc3
{[%clk 0:00:08.5]} 34. Qc6 {[%clk 0:00:34.1]} 34... Re6 {[%clk 0:00:06.6]} 35.
Rc1 {[%clk 0:00:33.9]} 35... Rf6 {[%clk 0:00:05]} 36. Rxc3 {[%clk 0:00:30.6]}
36... Qd4 {[%clk 0:00:05]} 37. Rc2 {[%clk 0:00:30.2]} 37... Qd3 {[%clk
0:00:05.1]} 38. Qc4+ {[%clk 0:00:25.2]} 38... Qxc4 {[%clk 0:00:04.6]} 39. Rxc4
{[%clk 0:00:26.1]} 39... Rf7 {[%clk 0:00:02.8]} 40. Rc6 {[%clk 0:00:25.9]} 40...
Rd7 {[%clk 0:00:02.9]} 41. Ra6 {[%clk 0:00:26]} 41... d5 {[%clk 0:00:03.2]} 42.
Rxa5 {[%clk 0:00:22.6]} 42... dxe4 {[%clk 0:00:03.4]} 43. Rxe5 {[%clk
0:00:22.4]} 43... Rd2 {[%clk 0:00:03.9]} 44. Rxe4 {[%clk 0:00:12.9]} 44... Rxa2
{[%clk 0:00:04.2]} 45. Rb4 {[%clk 0:00:12.4]} 45... Rb2 {[%clk 0:00:04.5]} 46.
Rb7 {[%clk 0:00:12.9]} 46... Kh7 {[%clk 0:00:04.8]} 47. b4 {[%clk 0:00:12.9]}
47... Kg6 {[%clk 0:00:05.3]} 48. h4 {[%clk 0:00:13.1]} 48... h5 {[%clk 0:00:05]}
49. b5 {[%clk 0:00:13.1]} 49... Kf6 {[%clk 0:00:05.3]} 50. b6 {[%clk 0:00:12.8]}
50... Kg6 {[%clk 0:00:05.7]} 51. Rb8 {[%clk 0:00:11.4]} 51... Kf6 {[%clk
0:00:05.9]} 52. b7 {[%clk 0:00:11.3]} 52... Kg6 {[%clk 0:00:06.4]} 53. Kf1
{[%clk 0:00:11.3]} 53... Rb6 {[%clk 0:00:05.7]} 54. Ke2 {[%clk 0:00:10.9]} 54...
Rb2+ {[%clk 0:00:05.6]} 55. Kd3 {[%clk 0:00:11.1]} 55... Rb3+ {[%clk 0:00:05.6]}
56. Kd4 {[%clk 0:00:10.9]} 56... Rb1 {[%clk 0:00:05.9]} 57. f3 {[%clk 0:00:09]}
57... Rd1+ {[%clk 0:00:06.2]} 58. Ke3 {[%clk 0:00:08.6]} 58... Re1+ {[%clk
0:00:06.5]} 59. Kf2 {[%clk 0:00:08.3]} 59... Rb1 {[%clk 0:00:06.9]} 60. g4
{[%clk 0:00:08.7]} 60... hxg4 {[%clk 0:00:06.8]} 61. fxg4 {[%clk 0:00:09.6]}
61... Rb2+ {[%clk 0:00:07.3]} 62. Ke3 {[%clk 0:00:09.6]} 62... Rb3+ {[%clk
0:00:07.7]} 63. Kd4 {[%clk 0:00:09.8]} 63... Rb1 {[%clk 0:00:08.1]} 64. Kc3
{[%clk 0:00:10.7]} 64... Rb6 {[%clk 0:00:07.3]} 65. h5+ {[%clk 0:00:09.2]} 65...
Kh7 {[%clk 0:00:06.7]} 66. g5 {[%clk 0:00:08]} 66... g6 {[%clk 0:00:06.7]} 67.
h6 {[%clk 0:00:04.5]} 67... Rb3+ {[%clk 0:00:04.8]} 68. Kc4 {[%clk 0:00:02.8]}
68... Rc3+ {[%clk 0:00:05.2]} 69. Kd4 {[%clk 0:00:02.5]} 69... Rc4+ {[%clk
0:00:05.5]} 70. Ke5 {[%clk 0:00:03.4]} 70... Re4+ {[%clk 0:00:05.7]} 71. Kd6
{[%clk 0:00:04.3]} 71... Re6+ {[%clk 0:00:05.8]} 72. Kc7 {[%clk 0:00:05.2]}
72... Rc6+ {[%clk 0:00:06]} 73. Kd8 {[%clk 0:00:04.7]} 73... Rd6+ {[%clk
0:00:06.2]} 74. Ke8 {[%clk 0:00:04.7]} 74... Re6+ {[%clk 0:00:06.5]} 75. Kf8
{[%clk 0:00:04.7]} 75... Rb6 {[%clk 0:00:01.9]} 76. Re8 {[%clk 0:00:04.7]} 76...
Rxb7 {[%clk 0:00:01.9]} 77. Re7+ {[%clk 0:00:05.6]} 77... Rxe7 {[%clk 0:00:02]}
78. Kxe7 {[%clk 0:00:06.5]} 78... Kh8 {[%clk 0:00:02.6]} 79. Kf6 {[%clk
0:00:07]} 79... Kh7 {[%clk 0:00:03]} 80. Kf7 {[%clk 0:00:07.1]} 80... Kh8 {[%clk
0:00:03.7]} 81. Kxg6 {[%clk 0:00:08]} 1-0

[Event "*** SCC Grand Prix: Titled Tuesday Blitz"]
[Site "Chess.com"]
[Date "2020.08.04"]
[Round "7"]
[White "NotFischer"]
[Black "DryCounty"]
[Result "1/2-1/2"]
[WhiteElo "2209"]
[BlackElo "2591"]
[TimeControl "180+1"]
[EndTime "15:03:20 PDT"]
[Termination "Game drawn - insufficient material"]

1. e4 {[%clk 0:03:00.8]} 1... e5 {[%clk 0:02:59.2]} 2. Bc4 {[%clk 0:03:00.3]}
2... Nf6 {[%clk 0:02:58.4]} 3. d3 {[%clk 0:03:00.3]} 3... c6 {[%clk 0:02:58.1]}
4. Nf3 {[%clk 0:03:00.1]} 4... d5 {[%clk 0:02:58]} 5. Bb3 {[%clk 0:03:00.5]}
5... Bb4+ {[%clk 0:02:57.3]} 6. c3 {[%clk 0:03:00.5]} 6... Bd6 {[%clk
0:02:57.1]} 7. O-O {[%clk 0:02:56.9]} 7... dxe4 {[%clk 0:02:53.5]} 8. dxe4
{[%clk 0:02:56.7]} 8... O-O {[%clk 0:02:51.1]} 9. Qe2 {[%clk 0:02:51.7]} 9...
Na6 {[%clk 0:02:48.4]} 10. Bg5 {[%clk 0:02:47.9]} 10... h6 {[%clk 0:02:47.4]}
11. Bh4 {[%clk 0:02:47.8]} 11... Nc5 {[%clk 0:02:46.2]} 12. Bc2 {[%clk
0:02:47.5]} 12... Ne6 {[%clk 0:02:45.7]} 13. Bg3 {[%clk 0:02:22.3]} 13... Qc7
{[%clk 0:02:40]} 14. Rd1 {[%clk 0:02:18.9]} 14... Nh5 {[%clk 0:02:33.8]} 15.
Nbd2 {[%clk 0:02:01.7]} 15... Nef4 {[%clk 0:02:18.9]} 16. Bxf4 {[%clk
0:01:53.3]} 16... Nxf4 {[%clk 0:02:18.4]} 17. Qe3 {[%clk 0:01:44.5]} 17... b5
{[%clk 0:02:08.5]} 18. a4 {[%clk 0:01:30.3]} 18... Bg4 {[%clk 0:01:53.9]} 19.
axb5 {[%clk 0:01:15.4]} 19... cxb5 {[%clk 0:01:53.8]} 20. Nb3 {[%clk 0:01:11.1]}
20... a6 {[%clk 0:01:44.2]} 21. Rd2 {[%clk 0:00:53.8]} 21... Rfd8 {[%clk
0:01:36.3]} 22. Bd1 {[%clk 0:00:52.2]} 22... Be6 {[%clk 0:01:30]} 23. Na5 {[%clk
0:00:41]} 23... Bc5 {[%clk 0:01:24.8]} 24. Qe1 {[%clk 0:00:41.2]} 24... Nd3
{[%clk 0:01:20.3]} 25. Qf1 {[%clk 0:00:38.8]} 25... Nxf2 {[%clk 0:01:12.6]} 26.
Rxf2 {[%clk 0:00:27.3]} 26... Bxf2+ {[%clk 0:00:49.5]} 27. Qxf2 {[%clk
0:00:27.2]} 27... Rxd1+ {[%clk 0:00:45.6]} 28. Rxd1 {[%clk 0:00:25.1]} 28...
Qxa5 {[%clk 0:00:45.6]} 29. Nxe5 {[%clk 0:00:24.6]} 29... Qc7 {[%clk 0:00:43]}
30. Qd4 {[%clk 0:00:22.8]} 30... Re8 {[%clk 0:00:42.7]} 31. Rd2 {[%clk
0:00:21.1]} 31... Bc8 {[%clk 0:00:38.2]} 32. Nf3 {[%clk 0:00:21]} 32... Bb7
{[%clk 0:00:36.9]} 33. Qd7 {[%clk 0:00:10.3]} 33... Qxd7 {[%clk 0:00:35.7]} 34.
Rxd7 {[%clk 0:00:11.2]} 34... Bxe4 {[%clk 0:00:36]} 35. Nd4 {[%clk 0:00:11.6]}
35... Re5 {[%clk 0:00:18.1]} 36. Kf2 {[%clk 0:00:11.9]} 36... Rg5 {[%clk
0:00:13.4]} 37. g3 {[%clk 0:00:12.2]} 37... Bd5 {[%clk 0:00:13]} 38. h4 {[%clk
0:00:11.7]} 38... Re5 {[%clk 0:00:12.8]} 39. Rd8+ {[%clk 0:00:10.5]} 39... Kh7
{[%clk 0:00:12.5]} 40. Rd6 {[%clk 0:00:11.4]} 40... f6 {[%clk 0:00:11.4]} 41.
Ne2 {[%clk 0:00:09.8]} 41... Bc4 {[%clk 0:00:10]} 42. Nf4 {[%clk 0:00:09.3]}
42... g5 {[%clk 0:00:08.4]} 43. hxg5 {[%clk 0:00:09.5]} 43... hxg5 {[%clk
0:00:07.2]} 44. Nh5 {[%clk 0:00:10]} 44... Kg6 {[%clk 0:00:04.4]} 45. g4 {[%clk
0:00:09.3]} 45... Re6 {[%clk 0:00:02.6]} 46. Rd7 {[%clk 0:00:08.4]} 46... Kh6
{[%clk 0:00:01.4]} 47. Kg3 {[%clk 0:00:06.4]} 47... f5 {[%clk 0:00:01.6]} 48.
Ng7 {[%clk 0:00:04.9]} 48... Re3+ {[%clk 0:00:01.4]} 49. Kf2 {[%clk 0:00:05.2]}
49... f4 {[%clk 0:00:01.7]} 50. Nf5+ {[%clk 0:00:05.8]} 50... Kg6 {[%clk
0:00:02.1]} 51. Nxe3 {[%clk 0:00:06.7]} 51... fxe3+ {[%clk 0:00:02.8]} 52. Kxe3
{[%clk 0:00:07.5]} 52... Be6 {[%clk 0:00:03.2]} 53. Rd6 {[%clk 0:00:08.4]} 53...
Kf7 {[%clk 0:00:03.6]} 54. Rxa6 {[%clk 0:00:09.3]} 54... Bxg4 {[%clk 0:00:04]}
55. Rb6 {[%clk 0:00:10.2]} 55... Bd7 {[%clk 0:00:03.7]} 56. Kf3 {[%clk
0:00:10.2]} 56... Ke7 {[%clk 0:00:03.3]} 57. Kg3 {[%clk 0:00:11.1]} 57... g4
{[%clk 0:00:03.9]} 58. b3 {[%clk 0:00:10.7]} 58... Kd8 {[%clk 0:00:04.1]} 59. c4
{[%clk 0:00:11]} 59... bxc4 {[%clk 0:00:03.6]} 60. bxc4 {[%clk 0:00:11.3]} 60...
Kc7 {[%clk 0:00:04]} 61. Rg6 {[%clk 0:00:11.6]} 61... Kd8 {[%clk 0:00:03.9]} 62.
Kf4 {[%clk 0:00:12]} 62... Kc7 {[%clk 0:00:04.2]} 63. Ke5 {[%clk 0:00:12.3]}
63... Kd8 {[%clk 0:00:03.9]} 64. Kd6 {[%clk 0:00:12.3]} 64... Ke8 {[%clk
0:00:04.3]} 65. Rg8+ {[%clk 0:00:11.7]} 65... Kf7 {[%clk 0:00:04.7]} 66. Rg5
{[%clk 0:00:11.2]} 66... Bc8 {[%clk 0:00:04.9]} 67. c5 {[%clk 0:00:11.4]} 67...
Kf6 {[%clk 0:00:05.1]} 68. Rg8 {[%clk 0:00:11.9]} 68... Bf5 {[%clk 0:00:05.6]}
69. c6 {[%clk 0:00:12]} 69... Be6 {[%clk 0:00:04.6]} 70. Rf8+ {[%clk 0:00:12.1]}
70... Kg7 {[%clk 0:00:05]} 71. Rf1 {[%clk 0:00:11]} 71... Bc8 {[%clk 0:00:04.7]}
72. Kc7 {[%clk 0:00:11]} 72... Be6 {[%clk 0:00:04.5]} 73. Kd8 {[%clk 0:00:10.6]}
73... Kg6 {[%clk 0:00:04.3]} 74. Rf8 {[%clk 0:00:07.3]} 74... Kg5 {[%clk
0:00:04.2]} 75. c7 {[%clk 0:00:06.9]} 75... g3 {[%clk 0:00:03.6]} 76. Rg8+
{[%clk 0:00:05.1]} 76... Kf4 {[%clk 0:00:03.6]} 77. c8=Q {[%clk 0:00:03.1]}
77... Bxc8 {[%clk 0:00:03.5]} 78. Kxc8 {[%clk 0:00:04]} 78... Kf3 {[%clk
0:00:04]} 79. Rf8+ {[%clk 0:00:04.3]} 79... Kg2 {[%clk 0:00:03.8]} 80. Kd7
{[%clk 0:00:05.2]} 80... Kh2 {[%clk 0:00:04.1]} 81. Rh8+ {[%clk 0:00:05.6]}
81... Kg2 {[%clk 0:00:03.6]} 82. Ke6 {[%clk 0:00:06.5]} 82... Kf2 {[%clk
0:00:04]} 83. Rf8+ {[%clk 0:00:06.9]} 83... Ke2 {[%clk 0:00:04.2]} 84. Rg8
{[%clk 0:00:06.1]} 84... Kf2 {[%clk 0:00:04.6]} 85. Kf5 {[%clk 0:00:06.4]} 85...
g2 {[%clk 0:00:04.7]} 86. Ke4 {[%clk 0:00:06.6]} 86... g1=Q {[%clk 0:00:04.7]}
87. Rxg1 {[%clk 0:00:06.9]} 87... Kxg1 {[%clk 0:00:05]} 1/2-1/2

[Event "*** SCC Grand Prix: Titled Tuesday Blitz"]
[Site "Chess.com"]
[Date "2020.08.04"]
[Round "8"]
[White "DishonorOnYourCow"]
[Black "AGW2016"]
[Result "0-1"]
[WhiteElo "2277"]
[BlackElo "2438"]
[TimeControl "180+1"]
[EndTime "15:13:22 PDT"]
[Termination "AGW2016 won by resignation"]

1. d4 {[%clk 0:03:00.9]} 1... Nf6 {[%clk 0:02:59.7]} 2. c4 {[%clk 0:03:00.5]}
2... g6 {[%clk 0:03:00.3]} 3. Nc3 {[%clk 0:03:00.1]} 3... Bg7 {[%clk 0:03:01]}
4. e4 {[%clk 0:02:59.9]} 4... d6 {[%clk 0:03:01.7]} 5. f4 {[%clk 0:02:59.8]}
5... O-O {[%clk 0:03:02.5]} 6. Nf3 {[%clk 0:03:00.2]} 6... c5 {[%clk 0:03:03.2]}
7. d5 {[%clk 0:03:00.4]} 7... e6 {[%clk 0:03:03.8]} 8. dxe6 {[%clk 0:03:01.3]}
8... Bxe6 {[%clk 0:03:01.6]} 9. Bd3 {[%clk 0:02:58.5]} 9... Nc6 {[%clk
0:02:54.9]} 10. f5 {[%clk 0:02:56.7]} 10... Bd7 {[%clk 0:02:51.2]} 11. O-O
{[%clk 0:02:52.9]} 11... Nd4 {[%clk 0:02:51.6]} 12. Nxd4 {[%clk 0:02:42.8]}
12... cxd4 {[%clk 0:02:51.7]} 13. Bg5 {[%clk 0:02:43.4]} 13... dxc3 {[%clk
0:02:49.3]} 14. bxc3 {[%clk 0:02:42.9]} 14... h6 {[%clk 0:02:48.6]} 15. Bf4
{[%clk 0:02:40.4]} 15... Bc6 {[%clk 0:02:48.3]} 16. fxg6 {[%clk 0:02:33.2]}
16... fxg6 {[%clk 0:02:48.2]} 17. Bc2 {[%clk 0:02:20.8]} 17... Nxe4 {[%clk
0:02:43.8]} 18. Qg4 {[%clk 0:01:56.3]} 18... Qb6+ {[%clk 0:02:28.3]} 19. Kh1
{[%clk 0:01:42.6]} 19... Nf2+ {[%clk 0:02:28.3]} 20. Rxf2 {[%clk 0:01:40.7]}
20... Qxf2 {[%clk 0:02:28.4]} 21. Qe6+ {[%clk 0:01:38]} 21... Rf7 {[%clk
0:02:19.7]} 22. Rg1 {[%clk 0:01:35.5]} 22... Qxc2 {[%clk 0:02:14.8]} 0-1

[Event "*** SCC Grand Prix: Titled Tuesday Blitz"]
[Site "Chess.com"]
[Date "2020.08.04"]
[Round "8"]
[White "bratkoo"]
[Black "afgano29"]
[Result "1-0"]
[WhiteElo "2519"]
[BlackElo "2632"]
[TimeControl "180+1"]
[EndTime "15:13:49 PDT"]
[Termination "bratkoo won by resignation"]

1. e4 {[%clk 0:03:00.9]} 1... e6 {[%clk 0:03:00.2]} 2. d4 {[%clk 0:03:00.1]}
2... d5 {[%clk 0:03:00.7]} 3. Nc3 {[%clk 0:03:00.7]} 3... Bb4 {[%clk 0:03:00.4]}
4. e5 {[%clk 0:03:00.1]} 4... b6 {[%clk 0:03:00.5]} 5. Qg4 {[%clk 0:02:56.5]}
5... Bf8 {[%clk 0:03:00.5]} 6. Nf3 {[%clk 0:02:53.8]} 6... Ba6 {[%clk
0:03:00.2]} 7. Bxa6 {[%clk 0:02:53.2]} 7... Nxa6 {[%clk 0:03:01.1]} 8. O-O
{[%clk 0:02:53.2]} 8... Ne7 {[%clk 0:02:59.9]} 9. Bg5 {[%clk 0:02:47.7]} 9...
Qd7 {[%clk 0:02:58.3]} 10. Bxe7 {[%clk 0:02:46.8]} 10... Qxe7 {[%clk 0:02:57.4]}
11. Nb5 {[%clk 0:02:42.8]} 11... Qd7 {[%clk 0:02:52.4]} 12. a4 {[%clk
0:02:35.9]} 12... c6 {[%clk 0:02:52.1]} 13. Nd6+ {[%clk 0:02:22.2]} 13... Bxd6
{[%clk 0:02:51.3]} 14. Qxg7 {[%clk 0:02:22.3]} 14... O-O-O {[%clk 0:02:52.2]}
15. exd6 {[%clk 0:02:22.4]} 15... Rdg8 {[%clk 0:02:42.5]} 16. Qf6 {[%clk
0:02:21]} 16... Rg6 {[%clk 0:02:39.9]} 17. Qf4 {[%clk 0:02:20.9]} 17... f6
{[%clk 0:02:38.5]} 18. Rfe1 {[%clk 0:02:13.3]} 18... Rd8 {[%clk 0:02:36]} 19.
Nh4 {[%clk 0:02:10.5]} 19... e5 {[%clk 0:02:25.7]} 20. dxe5 {[%clk 0:01:55.6]}
20... fxe5 {[%clk 0:02:25.2]} 21. Qxe5 {[%clk 0:01:53.6]} 21... Rxd6 {[%clk
0:02:24.8]} 22. Nf5 {[%clk 0:01:53]} 22... Nb4 {[%clk 0:02:06.8]} 23. c3 {[%clk
0:01:45.4]} 23... Nc2 {[%clk 0:02:02.5]} 24. Nxd6+ {[%clk 0:01:44.8]} 24... Qxd6
{[%clk 0:02:03.4]} 25. Qf5+ {[%clk 0:01:44.5]} 1-0

[Event "*** SCC Grand Prix: Titled Tuesday Blitz"]
[Site "Chess.com"]
[Date "2020.08.04"]
[Round "8"]
[White "alexrustemov"]
[Black "frederiksvane"]
[Result "1-0"]
[WhiteElo "2731"]
[BlackElo "2574"]
[TimeControl "180+1"]
[EndTime "15:14:04 PDT"]
[Termination "alexrustemov won by resignation"]

1. d4 {[%clk 0:03:00.9]} 1... Nf6 {[%clk 0:02:58.5]} 2. c4 {[%clk 0:03:00.4]}
2... e6 {[%clk 0:02:58.7]} 3. Nf3 {[%clk 0:03:00.3]} 3... d5 {[%clk 0:02:53.7]}
4. Nc3 {[%clk 0:02:59.7]} 4... Be7 {[%clk 0:02:53.8]} 5. Bg5 {[%clk 0:02:58.7]}
5... h6 {[%clk 0:02:52.5]} 6. Bh4 {[%clk 0:02:58.8]} 6... O-O {[%clk 0:02:51.9]}
7. e3 {[%clk 0:02:59]} 7... Nbd7 {[%clk 0:02:35.2]} 8. Qc2 {[%clk 0:02:51.9]}
8... c5 {[%clk 0:02:20.2]} 9. cxd5 {[%clk 0:02:49.3]} 9... Nxd5 {[%clk 0:02:13]}
10. Bxe7 {[%clk 0:02:47.8]} 10... Qxe7 {[%clk 0:02:13.9]} 11. Nxd5 {[%clk
0:02:46.5]} 11... exd5 {[%clk 0:02:14.8]} 12. dxc5 {[%clk 0:02:40.4]} 12... Nxc5
{[%clk 0:02:15.1]} 13. Be2 {[%clk 0:02:33.7]} 13... Bg4 {[%clk 0:02:11.9]} 14.
O-O {[%clk 0:02:32.8]} 14... Rac8 {[%clk 0:02:11.3]} 15. Rac1 {[%clk 0:02:25.3]}
15... Rc7 {[%clk 0:01:47.8]} 16. Qd2 {[%clk 0:02:11.5]} 16... Rd8 {[%clk
0:01:14.6]} 17. Qb4 {[%clk 0:02:01.2]} 17... Ne6 {[%clk 0:01:06.7]} 18. Qxg4
{[%clk 0:01:54.9]} 1-0

[Event "*** SCC Grand Prix: Titled Tuesday Blitz"]
[Site "Chess.com"]
[Date "2020.08.04"]
[Round "8"]
[White "1977Ivan"]
[Black "ChainsOfFantasia"]
[Result "1-0"]
[WhiteElo "2691"]
[BlackElo "2502"]
[TimeControl "180+1"]
[EndTime "15:14:15 PDT"]
[Termination "1977Ivan won by checkmate"]

1. e4 {[%clk 0:03:00.9]} 1... e6 {[%clk 0:02:57.5]} 2. d4 {[%clk 0:02:57.4]}
2... d5 {[%clk 0:02:57.9]} 3. Nc3 {[%clk 0:02:57.9]} 3... Nf6 {[%clk 0:02:57.9]}
4. Bg5 {[%clk 0:02:55.3]} 4... dxe4 {[%clk 0:02:57.4]} 5. Nxe4 {[%clk
0:02:54.8]} 5... Be7 {[%clk 0:02:57.6]} 6. Bxf6 {[%clk 0:02:54.5]} 6... gxf6
{[%clk 0:02:57.2]} 7. Qd2 {[%clk 0:02:52.7]} 7... f5 {[%clk 0:02:53.9]} 8. Nc3
{[%clk 0:02:51.7]} 8... a6 {[%clk 0:02:50.1]} 9. O-O-O {[%clk 0:02:37.9]} 9...
b5 {[%clk 0:02:44.3]} 10. Nf3 {[%clk 0:02:37.4]} 10... c5 {[%clk 0:02:24.9]} 11.
d5 {[%clk 0:02:28.9]} 11... b4 {[%clk 0:02:25]} 12. Na4 {[%clk 0:02:26.4]} 12...
Bd7 {[%clk 0:01:47.3]} 13. dxe6 {[%clk 0:02:14.1]} 13... Bxa4 {[%clk 0:01:41.6]}
14. Qh6 {[%clk 0:02:04.8]} 14... Qc7 {[%clk 0:01:21.4]} 15. exf7+ {[%clk
0:02:01.2]} 15... Kxf7 {[%clk 0:01:21.3]} 16. Bc4+ {[%clk 0:02:01.7]} 16... Ke8
{[%clk 0:01:17.4]} 17. Rhe1 {[%clk 0:02:01.1]} 17... Nc6 {[%clk 0:01:08.9]} 18.
Qh5+ {[%clk 0:01:44.3]} 18... Kf8 {[%clk 0:01:06.6]} 19. Qf7# {[%clk 0:01:43.8]}
1-0

[Event "*** SCC Grand Prix: Titled Tuesday Blitz"]
[Site "Chess.com"]
[Date "2020.08.04"]
[Round "8"]
[White "Roza_Idrisova"]
[Black "Tactictic"]
[Result "1-0"]
[WhiteElo "2250"]
[BlackElo "2361"]
[TimeControl "180+1"]
[EndTime "15:14:35 PDT"]
[Termination "Roza_Idrisova won by resignation"]

1. d4 {[%clk 0:03:00.9]} 1... Nf6 {[%clk 0:02:59.3]} 2. Nf3 {[%clk 0:02:59.3]}
2... d5 {[%clk 0:02:59.1]} 3. Bg5 {[%clk 0:02:58.7]} 3... e6 {[%clk 0:02:57.9]}
4. e3 {[%clk 0:02:57]} 4... Be7 {[%clk 0:02:55.9]} 5. Bd3 {[%clk 0:02:56.9]}
5... Nbd7 {[%clk 0:02:54.6]} 6. O-O {[%clk 0:02:56.5]} 6... h6 {[%clk
0:02:54.8]} 7. Bh4 {[%clk 0:02:56]} 7... O-O {[%clk 0:02:54.4]} 8. Nbd2 {[%clk
0:02:55.4]} 8... b6 {[%clk 0:02:54.6]} 9. Ne5 {[%clk 0:02:55.4]} 9... Bb7 {[%clk
0:02:53.3]} 10. f4 {[%clk 0:02:55]} 10... c5 {[%clk 0:02:49.6]} 11. c3 {[%clk
0:02:54.4]} 11... Ne8 {[%clk 0:02:44.3]} 12. Bxe7 {[%clk 0:02:52.8]} 12... Qxe7
{[%clk 0:02:45.2]} 13. Rf3 {[%clk 0:02:45.2]} 13... Nd6 {[%clk 0:02:37.4]} 14.
Rg3 {[%clk 0:02:42.9]} 14... Nf6 {[%clk 0:02:37]} 15. Qe2 {[%clk 0:02:36]} 15...
Nf5 {[%clk 0:02:18.9]} 16. Bxf5 {[%clk 0:02:33.8]} 16... exf5 {[%clk 0:02:19.8]}
17. Qd3 {[%clk 0:02:28.7]} 17... Ne4 {[%clk 0:02:18.9]} 18. Nxe4 {[%clk
0:02:27.7]} 18... fxe4 {[%clk 0:02:19.8]} 19. Qe2 {[%clk 0:02:26.1]} 19... Rfd8
{[%clk 0:02:16.3]} 20. Qg4 {[%clk 0:02:24.1]} 20... f6 {[%clk 0:02:15.2]} 21.
Ng6 {[%clk 0:02:19.7]} 21... Qd7 {[%clk 0:02:10.1]} 22. f5 {[%clk 0:02:19.5]}
22... a5 {[%clk 0:02:04.6]} 23. Nf4 {[%clk 0:02:19]} 23... Re8 {[%clk
0:01:59.5]} 24. Ne6 {[%clk 0:02:18.6]} 24... Re7 {[%clk 0:01:59.5]} 25. Rd1
{[%clk 0:01:56.5]} 25... c4 {[%clk 0:01:57.4]} 26. Rf1 {[%clk 0:01:49.8]} 26...
Ra7 {[%clk 0:01:56.7]} 27. Qg6 {[%clk 0:01:49.5]} 27... Kh8 {[%clk 0:01:54.8]}
28. Rf4 {[%clk 0:01:47.5]} 28... Bc8 {[%clk 0:01:47.3]} 29. Rh4 {[%clk
0:01:46.5]} 29... Qe8 {[%clk 0:01:33.1]} 30. Rxh6+ {[%clk 0:01:34.6]} 30... gxh6
{[%clk 0:01:32.2]} 31. Qxh6+ {[%clk 0:01:34.5]} 31... Rh7 {[%clk 0:01:32.6]} 32.
Qxf6+ {[%clk 0:01:33.7]} 1-0